[Event "Late-Titled-Tuesday-Blitz-October-03-2023"]
[Site "Chess.com"]
[Date "2023.10.03"]
[Round "5"]
[White "Djager97"]
[Black "GiorgianBarbosa"]
[Result "1-0"]
[WhiteElo "2551"]
[BlackElo "2404"]
[TimeControl "180+1"]
[EndTime "14:54:24 PDT"]
[Termination "Djager97 won by checkmate"]

1. e4 {[%clk 0:03:00.9]} 1... c5 {[%clk 0:02:48.1]} 2. Nf3 {[%clk 0:02:59.4]}
2... g6 {[%clk 0:02:49]} 3. c3 {[%clk 0:02:58.9]} 3... Bg7 {[%clk 0:02:45.2]} 4.
d4 {[%clk 0:02:59.3]} 4... cxd4 {[%clk 0:02:45.1]} 5. cxd4 {[%clk 0:03:00.2]}
5... d5 {[%clk 0:02:45.7]} 6. e5 {[%clk 0:03:00.4]} 6... Bg4 {[%clk 0:02:45.4]}
7. h3 {[%clk 0:02:55.9]} 7... Bxf3 {[%clk 0:02:45]} 8. Qxf3 {[%clk 0:02:56.6]}
8... e6 {[%clk 0:02:44.1]} 9. Nc3 {[%clk 0:02:55]} 9... Ne7 {[%clk 0:02:44]} 10.
Bg5 {[%clk 0:02:52.6]} 10... O-O {[%clk 0:02:43.9]} 11. Be2 {[%clk 0:02:35]}
11... Nbc6 {[%clk 0:02:43.7]} 12. Rd1 {[%clk 0:02:35.3]} 12... Qb6 {[%clk
0:02:39.6]} 13. Bxe7 {[%clk 0:02:29.2]} 13... Nxe7 {[%clk 0:02:39]} 14. O-O
{[%clk 0:02:26.6]} 14... Nf5 {[%clk 0:02:24.1]} 15. Qd3 {[%clk 0:02:21.4]} 15...
Qxb2 {[%clk 0:02:22.3]} 16. Rb1 {[%clk 0:02:20.2]} 16... Qa3 {[%clk 0:02:22.7]}
17. Rxb7 {[%clk 0:01:44.5]} 17... Rfc8 {[%clk 0:02:22.1]} 18. Rb3 {[%clk
0:01:44.6]} 18... Qe7 {[%clk 0:02:22.3]} 19. Rfb1 {[%clk 0:01:37.3]} 19... h5
{[%clk 0:02:12.4]} 20. Na4 {[%clk 0:01:23.9]} 20... Qg5 {[%clk 0:02:07.8]} 21.
Nc5 {[%clk 0:01:07.5]} 21... Bxe5 {[%clk 0:02:01.7]} 22. Nxe6 {[%clk 0:01:01.7]}
22... Rc1+ {[%clk 0:01:57.1]} 23. Rxc1 {[%clk 0:01:00.7]} 23... Qxc1+ {[%clk
0:01:58]} 24. Bf1 {[%clk 0:01:00.4]} 24... Bf6 {[%clk 0:01:40.5]} 25. Rc3 {[%clk
0:00:58.5]} 25... Qh6 {[%clk 0:01:27.1]} 26. Nc7 {[%clk 0:00:58.3]} 26... Bxd4
{[%clk 0:01:11.9]} 27. Nxa8 {[%clk 0:00:52.2]} 27... Bxc3 {[%clk 0:01:00.5]} 28.
Qxc3 {[%clk 0:00:53.1]} 28... d4 {[%clk 0:01:01.3]} 29. Qc8+ {[%clk 0:00:50.6]}
29... Kg7 {[%clk 0:01:00.8]} 30. Nc7 {[%clk 0:00:51.1]} 30... Qg5 {[%clk
0:00:55.1]} 31. Qd7 {[%clk 0:00:42.8]} 31... Qe7 {[%clk 0:00:42.8]} 32. Qxe7
{[%clk 0:00:40]} 32... Nxe7 {[%clk 0:00:43.7]} 33. Nb5 {[%clk 0:00:40.8]} 33...
Nc6 {[%clk 0:00:41.1]} 34. Bd3 {[%clk 0:00:38.3]} 34... Kf6 {[%clk 0:00:41.1]}
35. Be4 {[%clk 0:00:36.7]} 35... Nb4 {[%clk 0:00:37]} 36. a3 {[%clk 0:00:36.3]}
36... Ke5 {[%clk 0:00:16.6]} 37. axb4 {[%clk 0:00:35.9]} 37... Kxe4 {[%clk
0:00:16.6]} 38. Nxa7 {[%clk 0:00:36.5]} 38... Kd3 {[%clk 0:00:12.9]} 39. Nc6
{[%clk 0:00:36.3]} 39... Kc4 {[%clk 0:00:13]} 40. b5 {[%clk 0:00:34.4]} 40... d3
{[%clk 0:00:12.3]} 41. Ne5+ {[%clk 0:00:33.6]} 41... Kxb5 {[%clk 0:00:10.1]} 42.
Nxd3 {[%clk 0:00:34.5]} 42... Kc4 {[%clk 0:00:10]} 43. Ne5+ {[%clk 0:00:34.6]}
43... Kd4 {[%clk 0:00:10.9]} 44. Nxf7 {[%clk 0:00:35.5]} 44... Ke4 {[%clk
0:00:11]} 45. h4 {[%clk 0:00:35]} 45... Kf5 {[%clk 0:00:11.9]} 46. g3 {[%clk
0:00:34.5]} 46... Kf6 {[%clk 0:00:12.2]} 47. Ng5 {[%clk 0:00:34.3]} 47... Kf5
{[%clk 0:00:12.3]} 48. Kg2 {[%clk 0:00:34.5]} 48... Kg4 {[%clk 0:00:13.2]} 49.
f3+ {[%clk 0:00:34.5]} 49... Kf5 {[%clk 0:00:14.1]} 50. Kf2 {[%clk 0:00:34.8]}
50... Ke5 {[%clk 0:00:13.6]} 51. Ke3 {[%clk 0:00:35.1]} 51... Kf5 {[%clk
0:00:14.5]} 52. Kd4 {[%clk 0:00:34.6]} 52... Kf6 {[%clk 0:00:14]} 53. Ke4 {[%clk
0:00:35]} 53... Kg7 {[%clk 0:00:14.3]} 54. Ke5 {[%clk 0:00:35.2]} 54... Kh6
{[%clk 0:00:15.2]} 55. Ne6 {[%clk 0:00:33.9]} 55... g5 {[%clk 0:00:13.1]} 56.
Nxg5 {[%clk 0:00:33.1]} 56... Kg6 {[%clk 0:00:14]} 57. f4 {[%clk 0:00:33.2]}
57... Kh6 {[%clk 0:00:14.9]} 58. f5 {[%clk 0:00:31.7]} 58... Kg7 {[%clk
0:00:15.1]} 59. Ne4 {[%clk 0:00:31.6]} 59... Kh6 {[%clk 0:00:15.2]} 60. f6
{[%clk 0:00:31.7]} 60... Kg6 {[%clk 0:00:16.1]} 61. Ke6 {[%clk 0:00:31.8]} 61...
Kh7 {[%clk 0:00:16]} 62. f7 {[%clk 0:00:32.1]} 62... Kg6 {[%clk 0:00:16.4]} 63.
f8=Q {[%clk 0:00:31.5]} 63... Kh7 {[%clk 0:00:17.3]} 64. Ng5+ {[%clk 0:00:30.8]}
64... Kg6 {[%clk 0:00:18.2]} 65. Qf7+ {[%clk 0:00:30.9]} 65... Kh6 {[%clk
0:00:18.6]} 66. Qh7# {[%clk 0:00:31.3]} 1-0

[Event "Late-Titled-Tuesday-Blitz-October-03-2023"]
[Site "Chess.com"]
[Date "2023.10.03"]
[Round "5"]
[White "marik_spb"]
[Black "akanga001"]
[Result "1-0"]
[WhiteElo "2384"]
[BlackElo "2031"]
[TimeControl "180+1"]
[EndTime "14:54:24 PDT"]
[Termination "marik_spb won on time"]

1. e4 {[%clk 0:02:48]} 1... c5 {[%clk 0:02:57.8]} 2. c3 {[%clk 0:02:47.9]} 2...
d6 {[%clk 0:02:55.8]} 3. d4 {[%clk 0:02:47.8]} 3... cxd4 {[%clk 0:02:55.7]} 4.
cxd4 {[%clk 0:02:48.7]} 4... Nf6 {[%clk 0:02:55.8]} 5. Nc3 {[%clk 0:02:48.9]}
5... e6 {[%clk 0:02:54]} 6. Nf3 {[%clk 0:02:46.1]} 6... Be7 {[%clk 0:02:52.9]}
7. Bf4 {[%clk 0:02:43.3]} 7... a6 {[%clk 0:02:52.1]} 8. Bd3 {[%clk 0:02:35.2]}
8... Nc6 {[%clk 0:02:50.6]} 9. Qe2 {[%clk 0:02:29.9]} 9... O-O {[%clk
0:02:34.4]} 10. O-O {[%clk 0:02:27.4]} 10... b6 {[%clk 0:02:19.8]} 11. e5 {[%clk
0:02:24.8]} 11... Nh5 {[%clk 0:02:08]} 12. Qe4 {[%clk 0:02:06.4]} 12... g6
{[%clk 0:02:06.3]} 13. Qxc6 {[%clk 0:02:01.2]} 13... Nxf4 {[%clk 0:02:02.7]} 14.
Qxa8 {[%clk 0:01:56.6]} 14... Nxd3 {[%clk 0:02:02]} 15. Rab1 {[%clk 0:01:40.4]}
15... Qc7 {[%clk 0:01:55.5]} 16. Qe4 {[%clk 0:01:39.2]} 16... Nxb2 {[%clk
0:01:44.3]} 17. Rxb2 {[%clk 0:01:36.4]} 17... Qxc3 {[%clk 0:01:44.3]} 18. Rxb6
{[%clk 0:01:34.7]} 18... d5 {[%clk 0:01:41.8]} 19. Qe3 {[%clk 0:01:32.5]} 19...
Qa5 {[%clk 0:01:36.5]} 20. Qb3 {[%clk 0:01:13.5]} 20... Re8 {[%clk 0:01:27.9]}
21. Rc1 {[%clk 0:01:03.1]} 21... Bd7 {[%clk 0:01:27.8]} 22. Rb8 {[%clk
0:00:59.3]} 22... Bd8 {[%clk 0:01:27.6]} 23. h4 {[%clk 0:00:54]} 23... Bb5
{[%clk 0:01:20.6]} 24. Rcc8 {[%clk 0:00:49.4]} 24... Kg7 {[%clk 0:01:08.9]} 25.
Qc3 {[%clk 0:00:36.3]} 25... Qxa2 {[%clk 0:00:42.2]} 26. Rxd8 {[%clk 0:00:33]}
26... Qb1+ {[%clk 0:00:41.8]} 27. Kh2 {[%clk 0:00:32.3]} 27... Rxd8 {[%clk
0:00:35.4]} 28. Rxd8 {[%clk 0:00:31.8]} 28... Qf5 {[%clk 0:00:36.3]} 29. Qe3
{[%clk 0:00:31]} 29... h6 {[%clk 0:00:34.4]} 30. Ra8 {[%clk 0:00:26.3]} 30...
Bf1 {[%clk 0:00:32.8]} 31. Nd2 {[%clk 0:00:20.6]} 31... Bb5 {[%clk 0:00:26.8]}
32. f3 {[%clk 0:00:18.2]} 32... g5 {[%clk 0:00:23.3]} 33. g4 {[%clk 0:00:15]}
33... Qc2 {[%clk 0:00:19.6]} 34. hxg5 {[%clk 0:00:14.7]} 34... h5 {[%clk
0:00:18.8]} 35. gxh5 {[%clk 0:00:14.3]} 35... Qd1 {[%clk 0:00:17.9]} 36. g6
{[%clk 0:00:08.1]} 36... fxg6 {[%clk 0:00:14.7]} 37. Ra7+ {[%clk 0:00:08.3]}
37... Kg8 {[%clk 0:00:12.8]} 38. hxg6 {[%clk 0:00:08]} 38... Be8 {[%clk
0:00:03.4]} 39. Qg5 {[%clk 0:00:01.4]} 39... Qe2+ {[%clk 0:00:01.7]} 40. Kh3
{[%clk 0:00:01.5]} 1-0

[Event "Late-Titled-Tuesday-Blitz-October-03-2023"]
[Site "Chess.com"]
[Date "2023.10.03"]
[Round "5"]
[White "Kirill_Klukin"]
[Black "Fandorine"]
[Result "1/2-1/2"]
[WhiteElo "2695"]
[BlackElo "2935"]
[TimeControl "180+1"]
[EndTime "14:54:26 PDT"]
[Termination "Game drawn by repetition"]

1. d4 {[%clk 0:02:58.5]} 1... Nf6 {[%clk 0:02:59.8]} 2. c4 {[%clk 0:02:57.4]}
2... g6 {[%clk 0:03:00.3]} 3. Nc3 {[%clk 0:02:57.2]} 3... Bg7 {[%clk 0:02:48.3]}
4. e4 {[%clk 0:02:53.3]} 4... d6 {[%clk 0:02:48.8]} 5. h3 {[%clk 0:02:51.3]}
5... e5 {[%clk 0:02:47.6]} 6. d5 {[%clk 0:02:41.1]} 6... a5 {[%clk 0:02:44.9]}
7. Be3 {[%clk 0:02:40.5]} 7... Na6 {[%clk 0:02:44.5]} 8. Bd3 {[%clk 0:02:38.9]}
8... Bd7 {[%clk 0:02:40.9]} 9. Nge2 {[%clk 0:02:33.5]} 9... h5 {[%clk
0:02:38.3]} 10. a3 {[%clk 0:02:24.7]} 10... Bh6 {[%clk 0:02:31.1]} 11. Bxh6
{[%clk 0:02:21.3]} 11... Rxh6 {[%clk 0:02:32]} 12. Bc2 {[%clk 0:02:19.3]} 12...
Kf8 {[%clk 0:02:28.6]} 13. Qd2 {[%clk 0:02:19.1]} 13... Kg7 {[%clk 0:02:27.9]}
14. O-O {[%clk 0:02:19.1]} 14... h4 {[%clk 0:02:20.4]} 15. f4 {[%clk 0:02:09.7]}
15... exf4 {[%clk 0:02:19.2]} 16. Rxf4 {[%clk 0:02:09.5]} 16... Ng8 {[%clk
0:01:47.5]} 17. Raf1 {[%clk 0:01:51.4]} 17... f6 {[%clk 0:01:46.3]} 18. Nd4
{[%clk 0:01:39.1]} 18... Qe8 {[%clk 0:01:20]} 19. Bd1 {[%clk 0:01:32.1]} 19...
a4 {[%clk 0:01:11.3]} 20. Bg4 {[%clk 0:01:30.6]} 20... Nc5 {[%clk 0:01:11.4]}
21. Bxd7 {[%clk 0:00:58.5]} 21... Qxd7 {[%clk 0:01:10.8]} 22. Nf3 {[%clk
0:00:37.9]} 22... g5 {[%clk 0:00:38.3]} 23. Rg4 {[%clk 0:00:20.3]} 23... Rg6
{[%clk 0:00:35.1]} 24. Nd4 {[%clk 0:00:19.4]} 24... Nb3 {[%clk 0:00:35.2]} 25.
Nxb3 {[%clk 0:00:14]} 25... axb3 {[%clk 0:00:35.3]} 26. Ne2 {[%clk 0:00:14.9]}
26... Nh6 {[%clk 0:00:30.1]} 27. Nd4 {[%clk 0:00:11.7]} 27... Nxg4 {[%clk
0:00:30.5]} 28. Ne6+ {[%clk 0:00:05.8]} 28... Kg8 {[%clk 0:00:23]} 29. hxg4
{[%clk 0:00:06.1]} 29... Re8 {[%clk 0:00:23.3]} 30. Qc3 {[%clk 0:00:03]} 30...
Rxe6 {[%clk 0:00:23.3]} 31. dxe6 {[%clk 0:00:03.7]} 31... Qxe6 {[%clk
0:00:24.2]} 32. Qxb3 {[%clk 0:00:04.4]} 32... Qxe4 {[%clk 0:00:21.3]} 33. c5+
{[%clk 0:00:04.6]} 33... Kg7 {[%clk 0:00:13.7]} 34. cxd6 {[%clk 0:00:05.1]}
34... cxd6 {[%clk 0:00:14.4]} 35. Rd1 {[%clk 0:00:05.7]} 35... Qxg4 {[%clk
0:00:05.5]} 36. Qxb7+ {[%clk 0:00:05.9]} 36... Kh6 {[%clk 0:00:05.8]} 37. Rxd6
{[%clk 0:00:02.6]} 37... h3 {[%clk 0:00:06.1]} 38. Qf3 {[%clk 0:00:02.8]} 38...
Qxf3 {[%clk 0:00:05.8]} 39. gxf3 {[%clk 0:00:03.7]} 39... Kh5 {[%clk 0:00:06.4]}
40. Kh2 {[%clk 0:00:04]} 40... Rh6 {[%clk 0:00:03]} 41. Kxh3 {[%clk 0:00:03.9]}
41... Kg6+ {[%clk 0:00:03.9]} 42. Kg3 {[%clk 0:00:04.5]} 42... Rh1 {[%clk
0:00:04.1]} 43. b4 {[%clk 0:00:04.6]} 43... Ra1 {[%clk 0:00:04.9]} 44. Ra6
{[%clk 0:00:05]} 44... Kh5 {[%clk 0:00:05.3]} 45. Rxf6 {[%clk 0:00:04.8]} 45...
Rxa3 {[%clk 0:00:05.3]} 46. Rf5 {[%clk 0:00:03.9]} 46... Rb3 {[%clk 0:00:05.8]}
47. b5 {[%clk 0:00:04.5]} 47... Kg6 {[%clk 0:00:06.2]} 48. Rc5 {[%clk 0:00:05]}
48... Rb4 {[%clk 0:00:06]} 49. Kf2 {[%clk 0:00:05.1]} 49... Kh5 {[%clk
0:00:05.1]} 50. Kg3 {[%clk 0:00:05.6]} 50... Kg6 {[%clk 0:00:05.3]} 51. Rc6+
{[%clk 0:00:05.9]} 51... Kh5 {[%clk 0:00:05]} 52. Rc5 {[%clk 0:00:06]} 52... Kg6
{[%clk 0:00:05]} 1/2-1/2

[Event "Late-Titled-Tuesday-Blitz-October-03-2023"]
[Site "Chess.com"]
[Date "2023.10.03"]
[Round "5"]
[White "Aleksandar-Topalov"]
[Black "Mikedannnn"]
[Result "1/2-1/2"]
[WhiteElo "2417"]
[BlackElo "2550"]
[TimeControl "180+1"]
[EndTime "14:54:26 PDT"]
[Termination "Game drawn - insufficient material"]

1. b3 {[%clk 0:03:00.9]} 1... e5 {[%clk 0:02:45.4]} 2. Bb2 {[%clk 0:02:58.3]}
2... d6 {[%clk 0:02:42]} 3. d4 {[%clk 0:02:57.8]} 3... Nd7 {[%clk 0:02:37]} 4.
e4 {[%clk 0:02:45.6]} 4... Ngf6 {[%clk 0:02:35.1]} 5. Nd2 {[%clk 0:02:45.6]}
5... exd4 {[%clk 0:02:30.7]} 6. Bxd4 {[%clk 0:02:44.5]} 6... g6 {[%clk
0:02:30.6]} 7. Ngf3 {[%clk 0:02:40.1]} 7... Bg7 {[%clk 0:02:30.6]} 8. Bd3 {[%clk
0:02:35.8]} 8... O-O {[%clk 0:02:29.9]} 9. O-O {[%clk 0:02:35.8]} 9... Nc5
{[%clk 0:02:19.3]} 10. Re1 {[%clk 0:02:26.9]} 10... Bg4 {[%clk 0:02:14.2]} 11.
h3 {[%clk 0:02:24.1]} 11... Bxf3 {[%clk 0:01:46.9]} 12. Nxf3 {[%clk 0:02:23.6]}
12... Ne6 {[%clk 0:01:47.3]} 13. Bb2 {[%clk 0:02:11]} 13... Nd7 {[%clk
0:01:46.9]} 14. Bxg7 {[%clk 0:02:10.4]} 14... Kxg7 {[%clk 0:01:47.8]} 15. e5
{[%clk 0:02:05.7]} 15... dxe5 {[%clk 0:01:44.7]} 16. Nxe5 {[%clk 0:02:05.6]}
16... Nxe5 {[%clk 0:01:44.5]} 17. Rxe5 {[%clk 0:02:05.7]} 17... Qd4 {[%clk
0:01:34.2]} 18. Re4 {[%clk 0:01:45.2]} 18... Qb2 {[%clk 0:01:29.8]} 19. Rb1
{[%clk 0:01:40.7]} 19... Qf6 {[%clk 0:01:29.2]} 20. g3 {[%clk 0:01:30.4]} 20...
Rad8 {[%clk 0:01:26.3]} 21. Qf1 {[%clk 0:01:11.4]} 21... Nd4 {[%clk 0:01:13.3]}
22. Rf4 {[%clk 0:00:57.9]} 22... Qc6 {[%clk 0:01:06]} 23. Qg2 {[%clk 0:00:56.3]}
23... Qxg2+ {[%clk 0:00:56.1]} 24. Kxg2 {[%clk 0:00:56.1]} 24... Rfe8 {[%clk
0:00:56.6]} 25. Re4 {[%clk 0:00:47.9]} 25... Rxe4 {[%clk 0:00:47.6]} 26. Bxe4
{[%clk 0:00:48.1]} 26... c6 {[%clk 0:00:47.5]} 27. Rd1 {[%clk 0:00:46.2]} 27...
Kf6 {[%clk 0:00:47.5]} 28. c3 {[%clk 0:00:45.3]} 28... Ne6 {[%clk 0:00:47.6]}
29. Rxd8 {[%clk 0:00:45]} 29... Nxd8 {[%clk 0:00:48.1]} 30. f4 {[%clk
0:00:45.1]} 30... a5 {[%clk 0:00:46.1]} 31. a3 {[%clk 0:00:43]} 31... Ne6 {[%clk
0:00:45]} 32. b4 {[%clk 0:00:42.3]} 32... axb4 {[%clk 0:00:40.5]} 33. axb4
{[%clk 0:00:42.6]} 33... Ke7 {[%clk 0:00:39.2]} 34. Kf3 {[%clk 0:00:39.8]} 34...
Kd6 {[%clk 0:00:39.4]} 35. Ke3 {[%clk 0:00:38.4]} 35... b6 {[%clk 0:00:39.6]}
36. Bc2 {[%clk 0:00:35.8]} 36... c5 {[%clk 0:00:39.3]} 37. Bb3 {[%clk
0:00:35.5]} 37... Nd8 {[%clk 0:00:31.8]} 38. bxc5+ {[%clk 0:00:30.8]} 38... Kxc5
{[%clk 0:00:30.3]} 39. g4 {[%clk 0:00:27.9]} 39... f6 {[%clk 0:00:26.8]} 40. g5
{[%clk 0:00:26.3]} 40... fxg5 {[%clk 0:00:24]} 41. fxg5 {[%clk 0:00:26]} 41...
Kd6 {[%clk 0:00:22.1]} 42. h4 {[%clk 0:00:21.1]} 42... Ke7 {[%clk 0:00:20.2]}
43. Kd4 {[%clk 0:00:20.6]} 43... Ne6+ {[%clk 0:00:18.9]} 44. Ke5 {[%clk
0:00:19.4]} 44... Nc5 {[%clk 0:00:18.7]} 45. Bg8 {[%clk 0:00:18]} 45... Kf8
{[%clk 0:00:16.9]} 46. Bxh7 {[%clk 0:00:15.4]} 46... Kg7 {[%clk 0:00:16.8]} 47.
Bxg6 {[%clk 0:00:15.1]} 47... Kxg6 {[%clk 0:00:16.8]} 48. Kd5 {[%clk 0:00:15.4]}
48... Na4 {[%clk 0:00:14.2]} 49. Kc6 {[%clk 0:00:14.5]} 49... Nxc3 {[%clk
0:00:14.1]} 50. Kxb6 {[%clk 0:00:13.8]} 50... Ne4 {[%clk 0:00:14.7]} 51. Kc6
{[%clk 0:00:13.6]} 51... Nxg5 {[%clk 0:00:15.2]} 52. hxg5 {[%clk 0:00:13.1]}
52... Kxg5 {[%clk 0:00:16.1]} 1/2-1/2

[Event "Late-Titled-Tuesday-Blitz-October-03-2023"]
[Site "Chess.com"]
[Date "2023.10.03"]
[Round "5"]
[White "RETURNOFTHELAGGER"]
[Black "Vaathi_Coming"]
[Result "0-1"]
[WhiteElo "2671"]
[BlackElo "2889"]
[TimeControl "180+1"]
[EndTime "14:54:27 PDT"]
[Termination "Vaathi_Coming won by resignation"]

1. e4 {[%clk 0:02:50.5]} 1... e5 {[%clk 0:02:57.3]} 2. Nc3 {[%clk 0:02:50]} 2...
Nc6 {[%clk 0:02:56.1]} 3. f4 {[%clk 0:02:48.6]} 3... exf4 {[%clk 0:02:55.3]} 4.
Nf3 {[%clk 0:02:46.6]} 4... g5 {[%clk 0:02:53.6]} 5. d4 {[%clk 0:02:45.5]} 5...
Bg7 {[%clk 0:02:53.8]} 6. d5 {[%clk 0:02:43.1]} 6... Ne5 {[%clk 0:02:53.3]} 7.
h4 {[%clk 0:02:32.5]} 7... h6 {[%clk 0:02:50.4]} 8. g3 {[%clk 0:02:26.3]} 8...
fxg3 {[%clk 0:02:29.9]} 9. Nxe5 {[%clk 0:02:11.7]} 9... Bxe5 {[%clk 0:02:30.8]}
10. hxg5 {[%clk 0:02:12.5]} 10... d6 {[%clk 0:02:27.7]} 11. Bb5+ {[%clk
0:01:46.4]} 11... Bd7 {[%clk 0:02:21.5]} 12. Bxd7+ {[%clk 0:01:45.4]} 12... Qxd7
{[%clk 0:02:22.4]} 13. Qf3 {[%clk 0:01:45.6]} 13... h5 {[%clk 0:01:15]} 14. Bd2
{[%clk 0:01:41.9]} 14... O-O-O {[%clk 0:01:13.2]} 15. Rxh5 {[%clk 0:01:36]}
15... Ne7 {[%clk 0:01:09]} 16. Rh6 {[%clk 0:01:23.9]} 16... Rxh6 {[%clk
0:00:36.4]} 17. gxh6 {[%clk 0:01:24.8]} 17... f5 {[%clk 0:00:36.5]} 18. O-O-O
{[%clk 0:01:21.7]} 18... f4 {[%clk 0:00:33.6]} 19. Bxf4 {[%clk 0:01:16.9]} 19...
Rf8 {[%clk 0:00:32]} 20. Ne2 {[%clk 0:01:17.6]} 20... Ng6 {[%clk 0:00:29.6]} 21.
Kb1 {[%clk 0:01:14.7]} 21... Nxf4 {[%clk 0:00:28.1]} 22. Nxg3 {[%clk 0:01:07.7]}
22... Qh3 {[%clk 0:00:26.5]} 23. Rh1 {[%clk 0:01:04.1]} 23... Qd7 {[%clk
0:00:20.2]} 24. Nf5 {[%clk 0:01:04.1]} 24... b6 {[%clk 0:00:12.3]} 25. Qf1
{[%clk 0:00:39.1]} 25... Kb7 {[%clk 0:00:11.5]} 26. Qc4 {[%clk 0:00:36.3]} 26...
Rh8 {[%clk 0:00:05.3]} 27. a4 {[%clk 0:00:32.5]} 27... a5 {[%clk 0:00:04.6]} 28.
c3 {[%clk 0:00:30.8]} 28... Ng6 {[%clk 0:00:04.4]} 29. Ka2 {[%clk 0:00:24.4]}
29... Ne7 {[%clk 0:00:04.6]} 30. Ne3 {[%clk 0:00:22.5]} 30... Nc8 {[%clk
0:00:03.2]} 31. Ka3 {[%clk 0:00:18.4]} 31... Ne7 {[%clk 0:00:03.4]} 32. Qe2
{[%clk 0:00:11.8]} 32... Bf4 {[%clk 0:00:03.5]} 33. Nc4 {[%clk 0:00:12.1]} 33...
Rxh6 {[%clk 0:00:03.2]} 34. Rf1 {[%clk 0:00:11.4]} 34... Rh4 {[%clk 0:00:02.9]}
35. Qf2 {[%clk 0:00:11.1]} 35... Bg5 {[%clk 0:00:02.8]} 36. Rg1 {[%clk
0:00:10.3]} 36... Rxe4 {[%clk 0:00:02.8]} 37. b3 {[%clk 0:00:07.4]} 37... Bh4
{[%clk 0:00:03]} 38. Qh2 {[%clk 0:00:04.7]} 38... Nxd5 {[%clk 0:00:02.6]} 39.
Qg2 {[%clk 0:00:04.6]} 39... Nxc3 {[%clk 0:00:02.9]} 40. Kb2 {[%clk 0:00:05.1]}
40... d5 {[%clk 0:00:02.8]} 41. Kxc3 {[%clk 0:00:04.7]} 41... Bf6+ {[%clk
0:00:03.4]} 42. Kc2 {[%clk 0:00:03.2]} 42... Qc6 {[%clk 0:00:03.7]} 43. Rd1
{[%clk 0:00:02.5]} 43... dxc4 {[%clk 0:00:03.8]} 44. bxc4 {[%clk 0:00:03.3]}
44... Rxc4+ {[%clk 0:00:03.9]} 45. Kb1 {[%clk 0:00:04.2]} 45... Qxg2 {[%clk
0:00:03.7]} 0-1

[Event "Late-Titled-Tuesday-Blitz-October-03-2023"]
[Site "Chess.com"]
[Date "2023.10.03"]
[Round "5"]
[White "kuli4ik"]
[Black "Grischuk"]
[Result "1-0"]
[WhiteElo "2937"]
[BlackElo "2998"]
[TimeControl "180+1"]
[EndTime "14:54:36 PDT"]
[Termination "kuli4ik won on time"]

1. Nf3 {[%clk 0:02:54.5]} 1... d5 {[%clk 0:02:56.6]} 2. d4 {[%clk 0:02:54.7]}
2... Nf6 {[%clk 0:02:56.1]} 3. Bf4 {[%clk 0:02:55.3]} 3... Bf5 {[%clk
0:02:55.5]} 4. e3 {[%clk 0:02:55.1]} 4... e6 {[%clk 0:02:55.8]} 5. Bd3 {[%clk
0:02:54.4]} 5... Bd6 {[%clk 0:02:56]} 6. Bg3 {[%clk 0:02:51.5]} 6... Ne4 {[%clk
0:02:39.3]} 7. Nbd2 {[%clk 0:02:51]} 7... O-O {[%clk 0:02:30.9]} 8. O-O {[%clk
0:02:49.7]} 8... Nd7 {[%clk 0:02:29.1]} 9. Nh4 {[%clk 0:02:45.6]} 9... Nxg3
{[%clk 0:02:24.1]} 10. hxg3 {[%clk 0:02:44.8]} 10... Bxd3 {[%clk 0:02:23.2]} 11.
cxd3 {[%clk 0:02:45.7]} 11... c5 {[%clk 0:02:21.2]} 12. dxc5 {[%clk 0:02:45]}
12... Nxc5 {[%clk 0:02:22.1]} 13. d4 {[%clk 0:02:45.2]} 13... Nd7 {[%clk
0:02:17.1]} 14. Qb3 {[%clk 0:02:37.2]} 14... Qb6 {[%clk 0:02:15.5]} 15. Rfc1
{[%clk 0:02:36.4]} 15... Rfc8 {[%clk 0:02:15]} 16. Nhf3 {[%clk 0:02:35.9]} 16...
a5 {[%clk 0:02:09.5]} 17. Qa4 {[%clk 0:02:25]} 17... Nf6 {[%clk 0:02:06.2]} 18.
Nb3 {[%clk 0:02:21]} 18... Ne4 {[%clk 0:01:50.2]} 19. Qd7 {[%clk 0:02:10.4]}
19... Rd8 {[%clk 0:01:31.8]} 20. Qa4 {[%clk 0:02:09.7]} 20... Qa6 {[%clk
0:01:25.5]} 21. Nbd2 {[%clk 0:01:56.8]} 21... Nf6 {[%clk 0:01:24.5]} 22. Qd1
{[%clk 0:01:52.5]} 22... a4 {[%clk 0:01:23.4]} 23. Rc2 {[%clk 0:01:50.4]} 23...
Rdc8 {[%clk 0:00:54.7]} 24. Rac1 {[%clk 0:01:49.8]} 24... Rc6 {[%clk 0:00:46.2]}
25. Ne5 {[%clk 0:01:47.6]} 25... Bxe5 {[%clk 0:00:45.2]} 26. dxe5 {[%clk
0:01:47.8]} 26... Nd7 {[%clk 0:00:44.3]} 27. Nf3 {[%clk 0:01:38.9]} 27... Rac8
{[%clk 0:00:38.5]} 28. Nd4 {[%clk 0:01:38.4]} 28... Rc4 {[%clk 0:00:21.1]} 29.
b3 {[%clk 0:01:23.3]} 29... axb3 {[%clk 0:00:22]} 30. axb3 {[%clk 0:01:23.5]}
30... Rxc2 {[%clk 0:00:22.2]} 31. Rxc2 {[%clk 0:01:23.7]} 31... Qa8 {[%clk
0:00:22.2]} 32. f4 {[%clk 0:01:17.2]} 32... g6 {[%clk 0:00:22.4]} 33. g4 {[%clk
0:01:15.1]} 33... Rc5 {[%clk 0:00:19.6]} 34. Qc1 {[%clk 0:01:11.1]} 34... Qc8
{[%clk 0:00:16.5]} 35. Rxc5 {[%clk 0:01:09.1]} 35... Qxc5 {[%clk 0:00:16.8]} 36.
Qa1 {[%clk 0:01:09.3]} 36... Kg7 {[%clk 0:00:12.3]} 37. g5 {[%clk 0:01:09.1]}
37... Qb4 {[%clk 0:00:09.5]} 38. Qc1 {[%clk 0:00:53.1]} 38... Nc5 {[%clk
0:00:09.3]} 39. Kh2 {[%clk 0:00:52.4]} 39... h6 {[%clk 0:00:04.7]} 40. gxh6+
{[%clk 0:00:50.8]} 40... Kxh6 {[%clk 0:00:05.6]} 41. Qc2 {[%clk 0:00:39.4]}
41... Kg7 {[%clk 0:00:05.6]} 42. Qc1 {[%clk 0:00:27.1]} 42... b6 {[%clk
0:00:05.4]} 43. Kg3 {[%clk 0:00:16.1]} 43... Ne4+ {[%clk 0:00:05.1]} 44. Kh2
{[%clk 0:00:16.5]} 44... Nc5 {[%clk 0:00:04.4]} 45. Kg3 {[%clk 0:00:16.4]} 45...
Ne4+ {[%clk 0:00:04.4]} 46. Kh2 {[%clk 0:00:16.8]} 46... Qc5 {[%clk 0:00:04.6]}
47. Qe1 {[%clk 0:00:14.3]} 47... Qe7 {[%clk 0:00:03.6]} 48. g3 {[%clk
0:00:13.8]} 48... Qc5 {[%clk 0:00:03.6]} 49. Kg2 {[%clk 0:00:12.4]} 49... Qa3
{[%clk 0:00:03.8]} 50. Qe2 {[%clk 0:00:11.4]} 50... Qc1 {[%clk 0:00:04]} 51. g4
{[%clk 0:00:11.2]} 51... Nc3 {[%clk 0:00:03.6]} 52. Qf2 {[%clk 0:00:08.9]} 52...
Ne4 {[%clk 0:00:03.8]} 53. Qe2 {[%clk 0:00:08.6]} 53... Nc3 {[%clk 0:00:04.3]}
54. Qd3 {[%clk 0:00:09.2]} 1-0